Workbook

Sheet Rozpočet_stratpro
A1: Kumulativní rozpočet projektu | C1: Instrukce: | D1: Editujte pouze zelená pole. Struktura kategorií a podkategorií nákladů odpovídá struktuře nákladů uvedené v Pravidlech pro žadatele, kap. C.4. U nákladových celků, které nemají samostatný rozpočet doložitelný jako zvláštní přílohu (např. výkaz výměr), vytvořte a položkově rozepište (pod)kategorie na nově vytvořených listech tohoto Excelu dle příkladu listu "X.vzor / 1.Pozemky". V případě kategorií, které se nerozpadají na (pod)kategorie nebo položky, ale jsou vykazovány za více partnerů, postupujte stejně. Na tomto listu nepřidávejte nové řádky. V případě úspěšné žádosti bude tabulka doplněna o sloupce, kdy příjemce bude ke každé ŽoP přilkládat tento Excel s vyznačením čerpání pro každou položku. Excel vkládejte do MS2021+ zazipovaný, jelikož nepodporuje soubor s makry.
A2: Název žadatele
A3: Název projektu
A5: Priorita
A6: Specifický cíl | B6: =IF(Rozpočet_stratpro!B5=data!A2,data!B2,(IF(B5=data!A3,data!B3,data!B4))) -> 3.1
A8: Souhrnný rozpočet
A9: Název | B9: Výdaje bez DPH | C9: Sazba DPH | D9: Výdaje s DPH | E9: Nezpůsobilá část výdajů stanovená žadatelem (bez DPH) | F9: Nezpůsobilá část DPH | G9: Způsobilé výdaje po zohlednění způsobilosti DPH
A10: 1. Investiční výdaje | B10: =SUM(B11,B12,B15:B19,B22:B24,B40:B45,B52,B55,B51) -> 0 | D10: =SUM(D11,D12,D15:D19,D22:D24,D40:D45,,D52,D55,D51) -> 0 | E10: =SUM(E11,E12,E15:E19,E22:E24,E40:E45,L24,E52,E55,E51) -> 0 | F10: =SUM(F11,F12,F15:F19,F22:F24,F40:F45,M24,F52,F55,F51) -> 0 | G10: =SUM(G11,G12,G15:G19,G22:G24,G40:G45,G52,G51) -> 0
A11: 1.1 Pozemky (nákup) | B11: 0 | C11: 0.21 | D11: =B11+(B11*C11) -> 0 | E11: 0 | F11: 0 | G11: =IF(data!$G$2=TRUE,(Rozpočet_stratpro!B11-Rozpočet_stratpro!E11),(Rozpočet_stratpro!D11-(Rozpočet_stratpro!E11+(E11*C11)))-F11) -> 0
A12: 1.2 Budovy, stavby | B12: =SUM(B13:B14) -> 0 | D12: =SUM(D13:D14) -> 0 | E12: =SUM(E13:E14) -> 0 | F12: =SUM(F13:F14) -> 0 | G12: =G13+G14 -> 0
A13: 1.2.1 Stavby pořízené formou výstavby a stavební úpravy | B13: 0 | C13: 0.21 | D13: =B13+(B13*C13) -> 0 | E13: 0 | F13: 0 | G13: =IF(data!$G$2=TRUE,(Rozpočet_stratpro!B13-Rozpočet_stratpro!E13),(Rozpočet_stratpro!D13-(Rozpočet_stratpro!E13+(E13*C13)))-F13) -> 0
A14: 1.2.2 Pořízení nemovitosti (budovy) | B14: 0 | C14: 0.21 | D14: 0 | E14: 0 | F14: 0 | G14: =IF(data!$G$2=TRUE,(Rozpočet_stratpro!B14-Rozpočet_stratpro!E14),(Rozpočet_stratpro!D14-(Rozpočet_stratpro!E14+(E14*C14)))-F14) -> 0
A15: 1.3. Hmotný movitý majetek | B15: 0 | C15: 0.21 | D15: 0 | E15: 0 | F15: 0 | G15: =IF(data!$G$2=TRUE,(Rozpočet_stratpro!B15-Rozpočet_stratpro!E15),(Rozpočet_stratpro!D15-(Rozpočet_stratpro!E15+(E15*C15)))-F15) -> 0
A16: 1.4. Materiál | B16: 0 | C16: 0.21 | D16: 0 | E16: 0 | F16: 0 | G16: =IF(data!$G$2=TRUE,(Rozpočet_stratpro!B16-Rozpočet_stratpro!E16),(Rozpočet_stratpro!D16-(Rozpočet_stratpro!E16+(E16*C16)))-F16) -> 0
A17: 1.5. Nehmotný majetek | B17: 0 | C17: 0.21 | D17: 0 | E17: 0 | F17: 0 | G17: =IF(data!$G$2=TRUE,(Rozpočet_stratpro!B17-Rozpočet_stratpro!E17),(Rozpočet_stratpro!D17-(Rozpočet_stratpro!E17+(E17*C17)))-F17) -> 0
A18: 1.6. Majetek pořízený vlastní činností (aktivací) | B18: 0 | C18: 0.21 | D18: 0 | E18: 0 | F18: 0 | G18: =IF(data!$G$2=TRUE,(Rozpočet_stratpro!B18-Rozpočet_stratpro!E18),(Rozpočet_stratpro!D18-(Rozpočet_stratpro!E18+(E18*C18)))-F18) -> 0
A19: 1.7. Osobní náklady | B19: 0 | D19: 0 | E19: 0 | F19: 0 | G19: =IF(data!$G$2=TRUE,(Rozpočet_stratpro!B19-Rozpočet_stratpro!E19),(Rozpočet_stratpro!D19-(Rozpočet_stratpro!E19+(E19*C19)))) -> 0
A20: 1.7.1 Hlavní administrativní tým | B20: 0 | D20: 0 | E20: 0 | F20: 0 | G20: =IF(data!$G$2=TRUE,(Rozpočet_stratpro!B20-Rozpočet_stratpro!E20),(Rozpočet_stratpro!D20-(Rozpočet_stratpro!E20+(E20*C20)))) -> 0
A21: 1.7.2 Odborný tým | B21: 0 | D21: 0 | E21: 0 | F21: 0 | G21: =IF(data!$G$2=TRUE,(Rozpočet_stratpro!B21-Rozpočet_stratpro!E21),(Rozpočet_stratpro!D21-(Rozpočet_stratpro!E21+(E21*C21)))) -> 0
A22: 1.8. Autorské příspěvky | B22: 0 | C22: 0.21 | D22: 0 | E22: 0 | F22: 0 | G22: =IF(data!$G$2=TRUE,(Rozpočet_stratpro!B22-Rozpočet_stratpro!E22),(Rozpočet_stratpro!D22-(Rozpočet_stratpro!E22+(E22*C22)))-F22) -> 0
A23: 1.9. Cestovní náhrady (odborný tým) | B23: 0 | C23: 0.21 | D23: 0 | E23: 0 | F23: 0 | G23: =IF(data!$G$2=TRUE,(Rozpočet_stratpro!B23-Rozpočet_stratpro!E23),(Rozpočet_stratpro!D23-(Rozpočet_stratpro!E23+(E23*C23)))-F23) -> 0
A24: 1.10. Služby | B24: =SUM(B25:B39) -> 0 | D24: =SUM(D25:D39) -> 0 | E24: =SUM(E25:E39) -> 0 | F24: =SUM(F25:F39) -> 0 | G24: =SUM(G25:G39) -> 0
A25: 1.10.1 Podkategorie 1 | B25: 0 | C25: 0.21 | D25: 0 | E25: 0 | F25: 0 | G25: =IF(data!$G$2=TRUE,(Rozpočet_stratpro!B25-Rozpočet_stratpro!E25),(Rozpočet_stratpro!D25-(Rozpočet_stratpro!E25+(E25*C25)))-F25) -> 0
A26: 1.10.2 Podkategorie 2 | B26: 0 | C26: 0.21 | D26: 0 | E26: 0 | F26: 0 | G26: =IF(data!$G$2=TRUE,(Rozpočet_stratpro!B26-Rozpočet_stratpro!E26),(Rozpočet_stratpro!D26-(Rozpočet_stratpro!E26+(E26*C26)))-F26) -> 0
A27: 1.10.3 Podkategorie 3 | B27: 0 | C27: 0.21 | D27: 0 | E27: 0 | F27: 0 | G27: =IF(data!$G$2=TRUE,(Rozpočet_stratpro!B27-Rozpočet_stratpro!E27),(Rozpočet_stratpro!D27-(Rozpočet_stratpro!E27+(E27*C27)))-F27) -> 0
A28: 1.10.4 Podkategorie 4 | B28: 0 | C28: 0.21 | D28: 0 | E28: 0 | F28: 0 | G28: =IF(data!$G$2=TRUE,(Rozpočet_stratpro!B28-Rozpočet_stratpro!E28),(Rozpočet_stratpro!D28-(Rozpočet_stratpro!E28+(E28*C28)))-F28) -> 0
A29: 1.10.5 Podkategorie 5 | B29: 0 | C29: 0.21 | D29: 0 | E29: 0 | F29: 0 | G29: =IF(data!$G$2=TRUE,(Rozpočet_stratpro!B29-Rozpočet_stratpro!E29),(Rozpočet_stratpro!D29-(Rozpočet_stratpro!E29+(E29*C29)))-F29) -> 0
A30: 1.10.6 Podkategorie 6 | B30: 0 | C30: 0.21 | D30: 0 | E30: 0 | F30: 0 | G30: =IF(data!$G$2=TRUE,(Rozpočet_stratpro!B30-Rozpočet_stratpro!E30),(Rozpočet_stratpro!D30-(Rozpočet_stratpro!E30+(E30*C30)))-F30) -> 0
A31: 1.10.7 Podkategorie 7 | B31: 0 | C31: 0.21 | D31: 0 | E31: 0 | F31: 0 | G31: =IF(data!$G$2=TRUE,(Rozpočet_stratpro!B31-Rozpočet_stratpro!E31),(Rozpočet_stratpro!D31-(Rozpočet_stratpro!E31+(E31*C31)))-F31) -> 0
A32: 1.10.8 Podkategorie 8 | B32: 0 | C32: 0.21 | D32: 0 | E32: 0 | F32: 0 | G32: =IF(data!$G$2=TRUE,(Rozpočet_stratpro!B32-Rozpočet_stratpro!E32),(Rozpočet_stratpro!D32-(Rozpočet_stratpro!E32+(E32*C32)))-F32) -> 0
A33: 1.10.9 Podkategorie 9 | B33: 0 | C33: 0.21 | D33: 0 | E33: 0 | F33: 0 | G33: =IF(data!$G$2=TRUE,(Rozpočet_stratpro!B33-Rozpočet_stratpro!E33),(Rozpočet_stratpro!D33-(Rozpočet_stratpro!E33+(E33*C33)))-F33) -> 0
A34: 1.10.10 Podkategorie 10 | B34: 0 | C34: 0.21 | D34: 0 | E34: 0 | F34: 0 | G34: =IF(data!$G$2=TRUE,(Rozpočet_stratpro!B34-Rozpočet_stratpro!E34),(Rozpočet_stratpro!D34-(Rozpočet_stratpro!E34+(E34*C34)))-F34) -> 0
A35: 1.10.11 Podkategorie 11 | B35: 0 | C35: 0.21 | D35: 0 | E35: 0 | F35: 0 | G35: =IF(data!$G$2=TRUE,(Rozpočet_stratpro!B35-Rozpočet_stratpro!E35),(Rozpočet_stratpro!D35-(Rozpočet_stratpro!E35+(E35*C35)))-F35) -> 0
A36: 1.10.12 Podkategorie 12 | B36: 0 | C36: 0.21 | D36: 0 | E36: 0 | F36: 0 | G36: =IF(data!$G$2=TRUE,(Rozpočet_stratpro!B36-Rozpočet_stratpro!E36),(Rozpočet_stratpro!D36-(Rozpočet_stratpro!E36+(E36*C36)))-F36) -> 0
A37: 1.10.13 Podkategorie 13 | B37: 0 | C37: 0.21 | D37: 0 | E37: 0 | F37: 0 | G37: =IF(data!$G$2=TRUE,(Rozpočet_stratpro!B37-Rozpočet_stratpro!E37),(Rozpočet_stratpro!D37-(Rozpočet_stratpro!E37+(E37*C37)))-F37) -> 0
A38: 1.10.14 Podkategorie 14 | B38: 0 | C38: 0.21 | D38: 0 | E38: 0 | F38: 0 | G38: =IF(data!$G$2=TRUE,(Rozpočet_stratpro!B38-Rozpočet_stratpro!E38),(Rozpočet_stratpro!D38-(Rozpočet_stratpro!E38+(E38*C38)))-F38) -> 0
A39: 1.10.15 Podkategorie 15 | B39: 0 | C39: 0.21 | D39: 0 | E39: 0 | F39: 0 | G39: =IF(data!$G$2=TRUE,(Rozpočet_stratpro!B39-Rozpočet_stratpro!E39),(Rozpočet_stratpro!D39-(Rozpočet_stratpro!E39+(E39*C39)))-F39) -> 0
A40: 1.11. Služby profesního vzdělávání | B40: 0 | C40: 0.21 | D40: 0 | E40: 0 | F40: 0 | G40: =IF(data!$G$2=TRUE,(Rozpočet_stratpro!B40-Rozpočet_stratpro!E40),(Rozpočet_stratpro!D40-(Rozpočet_stratpro!E40+(E40*C40)))-F40) -> 0
A41: 1.12. Leasing | B41: 0 | C41: 0.21 | D41: 0 | E41: 0 | F41: 0 | G41: =IF(data!$G$2=TRUE,(Rozpočet_stratpro!B41-Rozpočet_stratpro!E41),(Rozpočet_stratpro!D41-(Rozpočet_stratpro!E41+(E41*C41)))-F41) -> 0
A42: 1.13. Vícepráce | B42: 0 | C42: 0.21 | D42: 0 | E42: 0 | F42: 0 | G42: =IF(data!$G$2=TRUE,(Rozpočet_stratpro!B42-Rozpočet_stratpro!E42),(Rozpočet_stratpro!D42-(Rozpočet_stratpro!E42+(E42*C42)))-F42) -> 0
A43: 1.14. Pohledávky | B43: 0 | C43: 0.21 | D43: 0 | E43: 0 | F43: 0 | G43: =IF(data!$G$2=TRUE,(Rozpočet_stratpro!B43-Rozpočet_stratpro!E43),(Rozpočet_stratpro!D43-(Rozpočet_stratpro!E43+(E43*C43)))-F43) -> 0
A44: 1.15. Vyvolané investice | B44: 0 | C44: 0.21 | D44: 0 | E44: 0 | F44: 0 | G44: =IF(data!$G$2=TRUE,(Rozpočet_stratpro!B44-Rozpočet_stratpro!E44),(Rozpočet_stratpro!D44-(Rozpočet_stratpro!E44+(E44*C44)))-F44) -> 0
A45: 1.16. Přímá podpora cílových skupin | B45: =SUM(B46:B50) -> 0 | D45: =SUM(D46:D50) -> 0 | E45: =SUM(E46:E50) -> 0 | F45: =SUM(F46:F50) -> 0 | G45: =SUM(G46:G50) -> 0
A46: 1.16.1 Mzdové příspěvky za dobu účastii zaměstnance na aktivitách profesního vzdělávání akcích | B46: 0 | C46: 0.21 | D46: 0 | E46: 0 | F46: 0 | G46: =IF(data!$G$2=TRUE,(Rozpočet_stratpro!B46-Rozpočet_stratpro!E46),(Rozpočet_stratpro!D46-(Rozpočet_stratpro!E46+(E46*C46)))-F46) -> 0
A47: 1.16.2 Cestovní náhrady, resp. jízdné (cestovné), ubytování a stravné cílových skupin | B47: 0 | C47: 0.21 | D47: 0 | E47: 0 | F47: 0 | G47: =IF(data!$G$2=TRUE,(Rozpočet_stratpro!B47-Rozpočet_stratpro!E47),(Rozpočet_stratpro!D47-(Rozpočet_stratpro!E47+(E47*C47)))-F47) -> 0
A48: 1.16.3 Příspěvek na péči o dítě a další závislé osoby | B48: 0 | C48: 0.21 | D48: 0 | E48: 0 | F48: 0 | G48: =IF(data!$G$2=TRUE,(Rozpočet_stratpro!B48-Rozpočet_stratpro!E48),(Rozpočet_stratpro!D48-(Rozpočet_stratpro!E48+(E48*C48)))-F48) -> 0
A49: 1.16.4 Jiné nezbytné náklady cílové skupiny | B49: 0 | C49: 0.21 | D49: 0 | E49: 0 | F49: 0 | G49: =IF(data!$G$2=TRUE,(Rozpočet_stratpro!B49-Rozpočet_stratpro!E49),(Rozpočet_stratpro!D49-(Rozpočet_stratpro!E49+(E49*C49)))-F49) -> 0
A50: 1.16.5 Další náklady (pouze Úřad Práce) | B50: 0 | C50: 0.21 | D50: 0 | E50: 0 | F50: 0 | G50: =IF(data!$G$2=TRUE,(Rozpočet_stratpro!B50-Rozpočet_stratpro!E50),(Rozpočet_stratpro!D50-(Rozpočet_stratpro!E50+(E50*C50)))-F50) -> 0
A51: 1.17. Věcný příspěvek | B51: 0 | C51: 0.21 | D51: 0 | E51: 0 | F51: 0 | G51: =IF(data!$G$2=TRUE,(Rozpočet_stratpro!B51-Rozpočet_stratpro!E51),(Rozpočet_stratpro!D51-(Rozpočet_stratpro!E51+(E51*C51)))-F51) -> 0
A52: 1.18. Závěrečná evaluace | B52: =B53+B54 -> 0 | D52: =SUM(D53:D54) -> 0 | E52: =E53+E54 -> 0 | F52: =F53+F54 -> 0 | G52: =G53+G54 -> 0
A53: 1.18.1 Povinná část závěrečné evaluace | B53: 0 | C53: 0.21 | D53: 0 | E53: 0 | F53: 0 | G53: =IF(data!$G$2=TRUE,(Rozpočet_stratpro!B53-Rozpočet_stratpro!E53),(Rozpočet_stratpro!D53-(Rozpočet_stratpro!E53+(E53*C53)))) -> 0
A54: 1.18.2 Nepovinná část závěrečné evaluace | B54: 0 | C54: 0.21 | D54: 0 | E54: 0 | F54: 0 | G54: =IF(data!$G$2=TRUE,(Rozpočet_stratpro!B54-Rozpočet_stratpro!E54),(Rozpočet_stratpro!D54-(Rozpočet_stratpro!E54+(E54*C54)))-F54) -> 0
A55: 1.19. Nezpůsobilé investiční výdaje | B55: 0 | C55: 0.21 | D55: 0 | E55: =D55 -> 0 | F55: 0 | G55: 0
A56: 2. Neinvestiční výdaje | B56: =SUM(B57,B58,B61,B62,B63,B64,B65,B68,B69,B70,B86:B91,B98,B101,B97) -> 5892420.674 | D56: =SUM(D57,D58,D61:D65,D68:D70,D86:D91,,D98,D101,D97) -> 5997420.674 | E56: =SUM(E57,E58,E61:E65,E68:E70,E86:E91,,E98,E101,E97) -> 0 | F56: =SUM(F57,F58,F61:F65,F68:F70,F86:F91,F98,F101,F97) -> 0 | G56: =SUM(G57,G58,G61:G65,G68:G70,G86:G91,G98,G97) -> 5997420.674
A57: 2.1. Pozemky (nákup) | B57: 0 | C57: 0.21 | D57: =B57+(B57*C57) -> 0 | E57: 0 | F57: 0 | G57: =IF(data!$G$2=TRUE,(Rozpočet_stratpro!B57-Rozpočet_stratpro!E57),(Rozpočet_stratpro!D57-(Rozpočet_stratpro!E57+(E57*C57)))-F57) -> 0
A58: 2.2. Budovy, stavby | B58: =SUM(B59:B60) -> 0 | D58: =SUM(D59:D60) -> 0 | E58: =SUM(E59:E60) -> 0 | F58: =SUM(F59:F60) -> 0 | G58: =G59+G60 -> 0
A59: 2.2.1 Stavby pořízené formou výstavby a stavební úpravy | B59: 0 | C59: 0.21 | D59: =B59+(B59*C59) -> 0 | E59: 0 | F59: 0 | G59: =IF(data!$G$2=TRUE,(Rozpočet_stratpro!B59-Rozpočet_stratpro!E59),(Rozpočet_stratpro!D59-(Rozpočet_stratpro!E59+(E59*C59)))-F59) -> 0
A60: 2.2.2 Pořízení nemovitosti (budovy) | B60: 0 | C60: 0.21 | D60: 0 | E60: 0 | F60: 0 | G60: =IF(data!$G$2=TRUE,(Rozpočet_stratpro!B60-Rozpočet_stratpro!E60),(Rozpočet_stratpro!D60-(Rozpočet_stratpro!E60+(E60*C60)))-F60) -> 0
A61: 2.3. Hmotný movitý majetek | B61: 0 | C61: 0.21 | D61: 0 | E61: 0 | F61: 0 | G61: =IF(data!$G$2=TRUE,(Rozpočet_stratpro!B61-Rozpočet_stratpro!E61),(Rozpočet_stratpro!D61-(Rozpočet_stratpro!E61+(E61*C61)))-F61) -> 0
A62: 2.4. Materiál | B62: 0 | C62: 0.21 | D62: 0 | E62: 0 | F62: 0 | G62: =IF(data!$G$2=TRUE,(Rozpočet_stratpro!B62-Rozpočet_stratpro!E62),(Rozpočet_stratpro!D62-(Rozpočet_stratpro!E62+(E62*C62)))-F62) -> 0
A63: 2.5. Nehmotný majetek | B63: 0 | C63: 0.21 | D63: 0 | E63: 0 | F63: 0 | G63: =IF(data!$G$2=TRUE,(Rozpočet_stratpro!B63-Rozpočet_stratpro!E63),(Rozpočet_stratpro!D63-(Rozpočet_stratpro!E63+(E63*C63)))-F63) -> 0
A64: 2.6. Majetek pořízený vlastní činností (aktivací) | B64: 0 | C64: 0.21 | D64: 0 | E64: 0 | F64: 0 | G64: =IF(data!$G$2=TRUE,(Rozpočet_stratpro!B64-Rozpočet_stratpro!E64),(Rozpočet_stratpro!D64-(Rozpočet_stratpro!E64+(E64*C64)))-F64) -> 0
A65: 2.7. Osobní náklady | B65: =SUM(B66:B67) -> 5392420.674 | D65: =SUM(D66:D67) -> 5392420.674 | E65: =SUM(E66:E67) -> 0 | F65: =SUM(F66:F67) -> 0 | G65: =G66+G67 -> 5392420.674
A66: 2.7.1 Hlavní administrativní tým | B66: ='7.Osobní náklady'!H11 -> 2753250.674 | D66: 2753250.674 | E66: 0 | F66: 0 | G66: =IF(data!$G$2=TRUE,(Rozpočet_stratpro!B66-Rozpočet_stratpro!E66),(Rozpočet_stratpro!D66-(Rozpočet_stratpro!E66+(E66*C66)))) -> 2753250.674
A67: 2.7.2 Odborný tým | B67: ='7.Osobní náklady'!H58 -> 2639170 | D67: 2639170 | E67: 0 | F67: 0 | G67: =IF(data!$G$2=TRUE,(Rozpočet_stratpro!B67-Rozpočet_stratpro!E67),(Rozpočet_stratpro!D67-(Rozpočet_stratpro!E67+(E67*C67)))) -> 2639170
A68: 2.8. Autorské příspěvky | B68: 0 | C68: 0.21 | D68: 0 | E68: 0 | F68: 0 | G68: =IF(data!$G$2=TRUE,(Rozpočet_stratpro!B68-Rozpočet_stratpro!E68),(Rozpočet_stratpro!D68-(Rozpočet_stratpro!E68+(E68*C68)))-F68) -> 0
A69: 2.9. Cestovní náhrady (odborný tým) | B69: 0 | C69: 0.21 | D69: 0 | E69: 0 | F69: 0 | G69: =IF(data!$G$2=TRUE,(Rozpočet_stratpro!B69-Rozpočet_stratpro!E69),(Rozpočet_stratpro!D69-(Rozpočet_stratpro!E69+(E69*C69)))-F69) -> 0
A70: 2.10. Služby | B70: =SUM(B71:B85) -> 0 | D70: =SUM(D71:D85) -> 0 | E70: =SUM(E71:E85) -> 0 | F70: =SUM(F71:F85) -> 0 | G70: =SUM(G71:G85) -> 0
A71: 2.10.1 Podkategorie 1 | B71: 0 | C71: 0.21 | D71: 0 | E71: 0 | F71: 0 | G71: =IF(data!$G$2=TRUE,(Rozpočet_stratpro!B71-Rozpočet_stratpro!E71),(Rozpočet_stratpro!D71-(Rozpočet_stratpro!E71+(E71*C71)))-F71) -> 0
A72: 2.10.2 Podkategorie 2 | B72: 0 | C72: 0.21 | D72: 0 | E72: 0 | F72: 0 | G72: =IF(data!$G$2=TRUE,(Rozpočet_stratpro!B72-Rozpočet_stratpro!E72),(Rozpočet_stratpro!D72-(Rozpočet_stratpro!E72+(E72*C72)))-F72) -> 0
A73: 2.10.3 Podkategorie 3 | B73: 0 | C73: 0.21 | D73: 0 | E73: 0 | F73: 0 | G73: =IF(data!$G$2=TRUE,(Rozpočet_stratpro!B73-Rozpočet_stratpro!E73),(Rozpočet_stratpro!D73-(Rozpočet_stratpro!E73+(E73*C73)))-F73) -> 0
A74: 2.10.4 Podkategorie 4 | B74: 0 | C74: 0.21 | D74: 0 | E74: 0 | F74: 0 | G74: =IF(data!$G$2=TRUE,(Rozpočet_stratpro!B74-Rozpočet_stratpro!E74),(Rozpočet_stratpro!D74-(Rozpočet_stratpro!E74+(E74*C74)))-F74) -> 0
A75: 2.10.5 Podkategorie 5 | B75: 0 | C75: 0.21 | D75: 0 | E75: 0 | F75: 0 | G75: =IF(data!$G$2=TRUE,(Rozpočet_stratpro!B75-Rozpočet_stratpro!E75),(Rozpočet_stratpro!D75-(Rozpočet_stratpro!E75+(E75*C75)))-F75) -> 0
A76: 2.10.6 Podkategorie 6 | B76: 0 | C76: 0.21 | D76: 0 | E76: 0 | F76: 0 | G76: =IF(data!$G$2=TRUE,(Rozpočet_stratpro!B76-Rozpočet_stratpro!E76),(Rozpočet_stratpro!D76-(Rozpočet_stratpro!E76+(E76*C76)))-F76) -> 0
A77: 2.10.7 Podkategorie 7 | B77: 0 | C77: 0.21 | D77: 0 | E77: 0 | F77: 0 | G77: =IF(data!$G$2=TRUE,(Rozpočet_stratpro!B77-Rozpočet_stratpro!E77),(Rozpočet_stratpro!D77-(Rozpočet_stratpro!E77+(E77*C77)))-F77) -> 0
A78: 2.10.8 Podkategorie 8 | B78: 0 | C78: 0.21 | D78: 0 | E78: 0 | F78: 0 | G78: =IF(data!$G$2=TRUE,(Rozpočet_stratpro!B78-Rozpočet_stratpro!E78),(Rozpočet_stratpro!D78-(Rozpočet_stratpro!E78+(E78*C78)))-F78) -> 0
A79: 2.10.9 Podkategorie 9 | B79: 0 | C79: 0.21 | D79: 0 | E79: 0 | F79: 0 | G79: =IF(data!$G$2=TRUE,(Rozpočet_stratpro!B79-Rozpočet_stratpro!E79),(Rozpočet_stratpro!D79-(Rozpočet_stratpro!E79+(E79*C79)))-F79) -> 0
A80: 2.10.10 Podkategorie 10 | B80: 0 | C80: 0.21 | D80: 0 | E80: 0 | F80: 0 | G80: =IF(data!$G$2=TRUE,(Rozpočet_stratpro!B80-Rozpočet_stratpro!E80),(Rozpočet_stratpro!D80-(Rozpočet_stratpro!E80+(E80*C80)))-F80) -> 0
A81: 2.10.11 Podkategorie 11 | B81: 0 | C81: 0.21 | D81: 0 | E81: 0 | F81: 0 | G81: =IF(data!$G$2=TRUE,(Rozpočet_stratpro!B81-Rozpočet_stratpro!E81),(Rozpočet_stratpro!D81-(Rozpočet_stratpro!E81+(E81*C81)))-F81) -> 0
A82: 2.10.12 Podkategorie 12 | B82: 0 | C82: 0.21 | D82: 0 | E82: 0 | F82: 0 | G82: =IF(data!$G$2=TRUE,(Rozpočet_stratpro!B82-Rozpočet_stratpro!E82),(Rozpočet_stratpro!D82-(Rozpočet_stratpro!E82+(E82*C82)))-F82) -> 0
A83: 2.10.13 Podkategorie 13 | B83: 0 | C83: 0.21 | D83: 0 | E83: 0 | F83: 0 | G83: =IF(data!$G$2=TRUE,(Rozpočet_stratpro!B83-Rozpočet_stratpro!E83),(Rozpočet_stratpro!D83-(Rozpočet_stratpro!E83+(E83*C83)))-F83) -> 0
A84: 2.10.14 Podkategorie 14 | B84: 0 | C84: 0.21 | D84: 0 | E84: 0 | F84: 0 | G84: =IF(data!$G$2=TRUE,(Rozpočet_stratpro!B84-Rozpočet_stratpro!E84),(Rozpočet_stratpro!D84-(Rozpočet_stratpro!E84+(E84*C84)))-F84) -> 0
A85: 2.10.15 Podkategorie 15 | B85: 0 | C85: 0.21 | D85: 0 | E85: 0 | F85: 0 | G85: =IF(data!$G$2=TRUE,(Rozpočet_stratpro!B85-Rozpočet_stratpro!E85),(Rozpočet_stratpro!D85-(Rozpočet_stratpro!E85+(E85*C85)))-F85) -> 0
A86: 2.11. Služby profesního vzdělávání | B86: 0 | C86: 0.21 | D86: 0 | E86: 0 | F86: 0 | G86: =IF(data!$G$2=TRUE,(Rozpočet_stratpro!B86-Rozpočet_stratpro!E86),(Rozpočet_stratpro!D86-(Rozpočet_stratpro!E86+(E86*C86)))-F86) -> 0
A87: 2.12. Leasing | B87: 0 | C87: 0.21 | D87: 0 | E87: 0 | F87: 0 | G87: =IF(data!$G$2=TRUE,(Rozpočet_stratpro!B87-Rozpočet_stratpro!E87),(Rozpočet_stratpro!D87-(Rozpočet_stratpro!E87+(E87*C87)))-F87) -> 0
A88: 2.13. Vícepráce | B88: 0 | C88: 0.21 | D88: 0 | E88: 0 | F88: 0 | G88: =IF(data!$G$2=TRUE,(Rozpočet_stratpro!B88-Rozpočet_stratpro!E88),(Rozpočet_stratpro!D88-(Rozpočet_stratpro!E88+(E88*C88)))-F88) -> 0
A89: 2.14. Pohledávky | B89: 0 | C89: 0.21 | D89: 0 | E89: 0 | F89: 0 | G89: =IF(data!$G$2=TRUE,(Rozpočet_stratpro!B89-Rozpočet_stratpro!E89),(Rozpočet_stratpro!D89-(Rozpočet_stratpro!E89+(E89*C89)))-F89) -> 0
A90: 2.15. Vyvolané investice | B90: 0 | C90: 0.21 | D90: 0 | E90: 0 | F90: 0 | G90: =IF(data!$G$2=TRUE,(Rozpočet_stratpro!B90-Rozpočet_stratpro!E90),(Rozpočet_stratpro!D90-(Rozpočet_stratpro!E90+(E90*C90)))-F90) -> 0
A91: 2.16. Přímá podpora cílových skupin | B91: =SUM(B92:B96) -> 0 | D91: =SUM(D92:D96) -> 0 | E91: =SUM(E92:E96) -> 0 | F91: =SUM(F92:F96) -> 0 | G91: =SUM(G92:G96) -> 0
A92: 2.16.1 Mzdové příspěvky za dobu účastii zaměstnance na aktivitách profesního vzdělávání akcích | B92: 0 | C92: 0.21 | D92: 0 | E92: 0 | F92: 0 | G92: =IF(data!$G$2=TRUE,(Rozpočet_stratpro!B92-Rozpočet_stratpro!E92),(Rozpočet_stratpro!D92-(Rozpočet_stratpro!E92+(E92*C92)))-F92) -> 0
A93: 2.16.2 Cestovní náhrady, resp. jízdné (cestovné), ubytování a stravné cílových skupin | B93: 0 | C93: 0.21 | D93: 0 | E93: 0 | F93: 0 | G93: =IF(data!$G$2=TRUE,(Rozpočet_stratpro!B93-Rozpočet_stratpro!E93),(Rozpočet_stratpro!D93-(Rozpočet_stratpro!E93+(E93*C93)))-F93) -> 0
A94: 2.16.3 Příspěvek na péči o dítě a další závislé osoby | B94: 0 | C94: 0.21 | D94: 0 | E94: 0 | F94: 0 | G94: =IF(data!$G$2=TRUE,(Rozpočet_stratpro!B94-Rozpočet_stratpro!E94),(Rozpočet_stratpro!D94-(Rozpočet_stratpro!E94+(E94*C94)))-F94) -> 0
A95: 2.16.4 Jiné nezbytné náklady cílové skupiny | B95: 0 | C95: 0.21 | D95: 0 | E95: 0 | F95: 0 | G95: =IF(data!$G$2=TRUE,(Rozpočet_stratpro!B95-Rozpočet_stratpro!E95),(Rozpočet_stratpro!D95-(Rozpočet_stratpro!E95+(E95*C95)))-F95) -> 0
A96: 2.16.5 Další náklady (pouze Úřad Práce) | B96: 0 | C96: 0.21 | D96: 0 | E96: 0 | F96: 0 | G96: =IF(data!$G$2=TRUE,(Rozpočet_stratpro!B96-Rozpočet_stratpro!E96),(Rozpočet_stratpro!D96-(Rozpočet_stratpro!E96+(E96*C96)))-F96) -> 0
A97: 2.17. Věcný příspěvek | B97: 0 | C97: 0.21 | D97: 0 | E97: 0 | F97: 0 | G97: =IF(data!$G$2=TRUE,(Rozpočet_stratpro!B97-Rozpočet_stratpro!E97),(Rozpočet_stratpro!D97-(Rozpočet_stratpro!E97+(E97*C97)))-F97) -> 0
A98: 2.18. Závěrečná evaluace | B98: =SUM(B99:B100) -> 500000 | D98: =SUM(D99:D100) -> 605000 | E98: =E99+E100 -> 0 | F98: =F99+F100 -> 0 | G98: =G99+G100 -> 605000
A99: 2.18.1 Povinná část závěrečné evaluace | B99: 500000 | C99: 0.21 | D99: 605000 | E99: 0 | F99: 0 | G99: =IF(data!$G$2=TRUE,(Rozpočet_stratpro!B99-Rozpočet_stratpro!E99),(Rozpočet_stratpro!D99-(Rozpočet_stratpro!E99+(E99*C99)))-F99) -> 605000
A100: 2.18.2 Nepovinná část závěrečné evaluace | B100: 0 | C100: 0.21 | D100: 0 | E100: 0 | F100: 0 | G100: =IF(data!$G$2=TRUE,(Rozpočet_stratpro!B100-Rozpočet_stratpro!E100),(Rozpočet_stratpro!D100-(Rozpočet_stratpro!E100+(E100*C100)))-F100) -> 0
A101: 2.19. Nezpůsobilé neinvestiční výdaje | B101: 0 | C101: 0.21 | D101: 0 | E101: =D101 -> 0 | F101: 0 | G101: 0
A102: Celkem investiční a neinvestiční výdaje | B102: =SUM(B56,B10) -> 5892420.674 | D102: =SUM(D56,D10) -> 5997420.674 | E102: =SUM(E56,E10) -> 0 | F102: =SUM(F56,F10) -> 0 | G102: =SUM(G10,G56) -> 5997420.674
A103: Paušál (nepřímé výdaje) | G103: =(G102)*B103 -> 0
A104: Celkem | G104: =SUM(G102:G103) -> 5997420.674
A106: Celkové výdaje projektu | B106: =D102+G103 -> 5997420.674 | D106: Komentář k nezpůsobilým výdajům:
A107: Celkové způsobilé výdaje projektu | B107: =G104 -> 5997420.674
A108: Celkové nezpůsobilé výdaje projektu | B108: =B106-B107 -> 0
A109: Celkové nezpůsobilé výdaje projektu - investiční | B109: =D10-G10 -> 0
A110: Celkové nezpůsobilé výdaje projektu - neinvestiční | B110: =D56-G56 -> 0
A121: Verze 04

Sheet X.vzor
A1: Kumulativní rozpočet projektu
A2: Instrukce: | F2: Editujte pouze zelená pole. Rozepiště položky do úrovně jednotek vyšších než 40 000 Kč. V případě položek, jejichž kumulativní náklad bude nižší, uveďte jako jednotku "celkem". Stejné položky úvadějte do jednoho řádku s vymezením počtu jednotek. Je možné přidávat libovolné množství řádků. Tento list je příkladový a je třeba jej kopírovat pro využití na rozepsání ostatních polože z prvního listu (viz příklad 1. - Pozemky).
A9: Název položky | B9: Popis vazby na aktivitu(y) projektu | C9: Přiřazení subjektu: žadatel, anebo název partnera s finančním příspěvkem | D9: Měrná jednotka (kus, den, apod.) | E9: Počet jednotek | F9: Celková cena bez DPH | G9: Sazba DPH | H9: Celková cena s DPH | I9: Nezpůsobilá část celkových výdajů stanovená žadatelem (bez DPH) | J9: Nezpůsobilá část DPH | K9: Způsobilé výdaje po zohlednění způsobilosti DPH
A10: 1. | F10: =SUM(F11,F25) -> 0 | H10: =SUM(H25,H11) -> 0 | I10: =SUM(I25,I11) -> 0 | J10: =SUM(J25,J11) -> 0 | K10: =SUM(K25,K11) -> 0
A11: 1.1 Investiční výdaje | F11: =SUM(F12:F24) -> 0 | H11: =SUM(H12:H24) -> 0 | I11: =SUM(I12:I24) -> 0 | J11: =SUM(J12:J24) -> 0 | K11: =SUM(K12:K24) -> 0
F12: 0 | G12: 0.21 | H12: =F12+(F12*G12) -> 0 | I12: 0 | J12: 0 | K12: =IF(data!$G$2=TRUE,(X.vzor!F12-X.vzor!I12),(X.vzor!H12-(X.vzor!I12+(I12*G12)))-J12) -> 0
F13: 0 | G13: 0.21 | H13: =F13+(F13*G13) -> 0 | I13: 0 | J13: 0 | K13: =IF(data!$G$2=TRUE,(X.vzor!F13-X.vzor!I13),(X.vzor!H13-(X.vzor!I13+(I13*G13)))-J13) -> 0
F14: 0 | G14: 0.21 | H14: 0 | I14: 0 | J14: 0 | K14: =IF(data!$G$2=TRUE,(X.vzor!F14-X.vzor!I14),(X.vzor!H14-(X.vzor!I14+(I14*G14)))-J14) -> 0
F15: 0 | G15: 0.21 | H15: 0 | I15: 0 | J15: 0 | K15: =IF(data!$G$2=TRUE,(X.vzor!F15-X.vzor!I15),(X.vzor!H15-(X.vzor!I15+(I15*G15)))-J15) -> 0
F16: 0 | G16: 0.21 | H16: 0 | I16: 0 | J16: 0 | K16: =IF(data!$G$2=TRUE,(X.vzor!F16-X.vzor!I16),(X.vzor!H16-(X.vzor!I16+(I16*G16)))-J16) -> 0
F17: 0 | G17: 0.21 | H17: 0 | I17: 0 | J17: 0 | K17: =IF(data!$G$2=TRUE,(X.vzor!F17-X.vzor!I17),(X.vzor!H17-(X.vzor!I17+(I17*G17)))-J17) -> 0
F18: 0 | G18: 0.21 | H18: 0 | I18: 0 | J18: 0 | K18: =IF(data!$G$2=TRUE,(X.vzor!F18-X.vzor!I18),(X.vzor!H18-(X.vzor!I18+(I18*G18)))-J18) -> 0
F19: 0 | G19: 0.21 | H19: 0 | I19: 0 | J19: 0 | K19: =IF(data!$G$2=TRUE,(X.vzor!F19-X.vzor!I19),(X.vzor!H19-(X.vzor!I19+(I19*G19)))-J19) -> 0
F20: 0 | G20: 0.21 | H20: 0 | I20: 0 | J20: 0 | K20: =IF(data!$G$2=TRUE,(X.vzor!F20-X.vzor!I20),(X.vzor!H20-(X.vzor!I20+(I20*G20)))-J20) -> 0
F21: 0 | G21: 0.21 | H21: 0 | I21: 0 | J21: 0 | K21: =IF(data!$G$2=TRUE,(X.vzor!F21-X.vzor!I21),(X.vzor!H21-(X.vzor!I21+(I21*G21)))-J21) -> 0
F22: 0 | G22: 0.21 | H22: 0 | I22: 0 | J22: 0 | K22: =IF(data!$G$2=TRUE,(X.vzor!F22-X.vzor!I22),(X.vzor!H22-(X.vzor!I22+(I22*G22)))-J22) -> 0
F23: 0 | G23: 0.21 | H23: 0 | I23: 0 | J23: 0 | K23: =IF(data!$G$2=TRUE,(X.vzor!F23-X.vzor!I23),(X.vzor!H23-(X.vzor!I23+(I23*G23)))-J23) -> 0
F24: 0 | G24: 0.21 | H24: 0 | I24: 0 | J24: 0 | K24: =IF(data!$G$2=TRUE,(X.vzor!F24-X.vzor!I24),(X.vzor!H24-(X.vzor!I24+(I24*G24)))-J24) -> 0
A25: 1.2 Neinvestiční výdaje | F25: =SUM(F26:F38) -> 0 | H25: =SUM(H26:H38) -> 0 | I25: =SUM(I26:I38) -> 0 | J25: =SUM(J26:J38) -> 0 | K25: =SUM(K26:K38) -> 0
F26: 0 | G26: 0.21 | H26: 0 | I26: 0 | J26: 0 | K26: =IF(data!$G$2=TRUE,(X.vzor!F26-X.vzor!I26),(X.vzor!H26-(X.vzor!I26+(I26*G26)))-J26) -> 0
F27: 0 | G27: 0.21 | H27: 0 | I27: 0 | J27: 0 | K27: =IF(data!$G$2=TRUE,(X.vzor!F27-X.vzor!I27),(X.vzor!H27-(X.vzor!I27+(I27*G27)))-J27) -> 0
F28: 0 | G28: 0.21 | H28: 0 | I28: 0 | J28: 0 | K28: =IF(data!$G$2=TRUE,(X.vzor!F28-X.vzor!I28),(X.vzor!H28-(X.vzor!I28+(I28*G28)))-J28) -> 0
F29: 0 | G29: 0.21 | H29: 0 | I29: 0 | J29: 0 | K29: =IF(data!$G$2=TRUE,(X.vzor!F29-X.vzor!I29),(X.vzor!H29-(X.vzor!I29+(I29*G29)))-J29) -> 0
F30: 0 | G30: 0.21 | H30: 0 | I30: 0 | J30: 0 | K30: =IF(data!$G$2=TRUE,(X.vzor!F30-X.vzor!I30),(X.vzor!H30-(X.vzor!I30+(I30*G30)))-J30) -> 0
F31: 0 | G31: 0.21 | H31: 0 | I31: 0 | J31: 0 | K31: =IF(data!$G$2=TRUE,(X.vzor!F31-X.vzor!I31),(X.vzor!H31-(X.vzor!I31+(I31*G31)))-J31) -> 0
F32: 0 | G32: 0.21 | H32: 0 | I32: 0 | J32: 0 | K32: =IF(data!$G$2=TRUE,(X.vzor!F32-X.vzor!I32),(X.vzor!H32-(X.vzor!I32+(I32*G32)))-J32) -> 0
F33: 0 | G33: 0.21 | H33: 0 | I33: 0 | J33: 0 | K33: =IF(data!$G$2=TRUE,(X.vzor!F33-X.vzor!I33),(X.vzor!H33-(X.vzor!I33+(I33*G33)))-J33) -> 0
F34: 0 | G34: 0.21 | H34: 0 | I34: 0 | J34: 0 | K34: =IF(data!$G$2=TRUE,(X.vzor!F34-X.vzor!I34),(X.vzor!H34-(X.vzor!I34+(I34*G34)))-J34) -> 0
F35: 0 | G35: 0.21 | H35: 0 | I35: 0 | J35: 0 | K35: =IF(data!$G$2=TRUE,(X.vzor!F35-X.vzor!I35),(X.vzor!H35-(X.vzor!I35+(I35*G35)))-J35) -> 0
F36: 0 | G36: 0.21 | H36: 0 | I36: 0 | J36: 0 | K36: =IF(data!$G$2=TRUE,(X.vzor!F36-X.vzor!I36),(X.vzor!H36-(X.vzor!I36+(I36*G36)))-J36) -> 0
F37: 0 | G37: 0.21 | H37: 0 | I37: 0 | J37: 0 | K37: =IF(data!$G$2=TRUE,(X.vzor!F37-X.vzor!I37),(X.vzor!H37-(X.vzor!I37+(I37*G37)))-J37) -> 0
F38: 0 | G38: 0.21 | H38: 0 | I38: 0 | J38: 0 | K38: =IF(data!$G$2=TRUE,(X.vzor!F38-X.vzor!I38),(X.vzor!H38-(X.vzor!I38+(I38*G38)))-J38) -> 0
A39: Celkem | F39: =SUM(F25+F11) -> 0 | H39: =SUM(H25+H11) -> 0 | I39: =SUM(I25+I11) -> 0 | J39: =SUM(J25+J11) -> 0 | K39: =SUM(K25+K11) -> 0
H41: Komentář k nezpůsobilým výdajům:

Sheet 1.Pozemky
A1: Kumulativní rozpočet projektu
A2: Instrukce: | F2: Toto je příkladový list k rozepsání položky 1.1/2.1 Pozemky. Editujte pouze zelená pole. Rozepiště položky do úrovně jednotek vyšších než 40 000 Kč. V případě položek, jejichž kumulativní náklad bude nižší, uveďte jako jednotku "celkem". Stejné položky úvadějte do jednoho řádku s vymezením počtu jednotek. Je možné přidávat libovolné množství řádků. Příklad kurzívou.
A9: Název položky | B9: Popis vazby na aktivitu(y) projektu | C9: Přiřazení subjektu: žadatel, anebo název partnera s finančním příspěvkem | D9: Měrná jednotka (kus, den, apod.) | E9: Počet jednotek | F9: Celková cena bez DPH | G9: Sazba DPH | H9: Celková cena s DPH | I9: Nezpůsobilá část celkových výdajů stanovená žadatelem (bez DPH) | J9: Nezpůsobilá část DPH | K9: Způsobilé výdaje po zohlednění způsobilosti DPH
A10: 1. Pozemky | F10: =SUM(F11,F25) -> 2000000 | H10: =SUM(H25,H11) -> 2420000 | I10: =SUM(I25,I11) -> 0 | J10: =SUM(J25,J11) -> 0 | K10: =SUM(K25,K11) -> 2420000
A11: 1.1 Pozemky jako investiční výdaj | F11: =SUM(F12:F24) -> 2000000 | H11: =SUM(H12:H24) -> 2420000 | I11: =SUM(I12:I24) -> 0 | J11: =SUM(J12:J24) -> 0 | K11: =SUM(K12:K24) -> 2420000
A12: Vzor: Parcela p.č. 123/12 v k.ú. Horní Lhota | B12: Aktivita 1 | C12: Partner 1 | D12: kus | E12: 1 | F12: 2000000 | G12: 0.21 | H12: =F12+(F12*G12) -> 2420000 | I12: 0 | J12: 0 | K12: =IF(data!$G$2=TRUE,('1.Pozemky'!F12-'1.Pozemky'!I12),('1.Pozemky'!H12-('1.Pozemky'!I12+(I12*G12)))) -> 2420000
F13: 0 | G13: 0.21 | H13: =F13+(F13*G13) -> 0 | I13: 0 | J13: 0 | K13: =IF(data!$G$2=TRUE,('1.Pozemky'!F13-'1.Pozemky'!I13),('1.Pozemky'!H13-('1.Pozemky'!I13+(I13*G13)))-J13) -> 0
F14: 0 | G14: 0.21 | H14: 0 | I14: 0 | J14: 0 | K14: =IF(data!$G$2=TRUE,('1.Pozemky'!F14-'1.Pozemky'!I14),('1.Pozemky'!H14-('1.Pozemky'!I14+(I14*G14)))-J14) -> 0
F15: 0 | G15: 0.21 | H15: 0 | I15: 0 | J15: 0 | K15: =IF(data!$G$2=TRUE,('1.Pozemky'!F15-'1.Pozemky'!I15),('1.Pozemky'!H15-('1.Pozemky'!I15+(I15*G15)))-J15) -> 0
F16: 0 | G16: 0.21 | H16: 0 | I16: 0 | J16: 0 | K16: =IF(data!$G$2=TRUE,('1.Pozemky'!F16-'1.Pozemky'!I16),('1.Pozemky'!H16-('1.Pozemky'!I16+(I16*G16)))-J16) -> 0
F17: 0 | G17: 0.21 | H17: 0 | I17: 0 | J17: 0 | K17: =IF(data!$G$2=TRUE,('1.Pozemky'!F17-'1.Pozemky'!I17),('1.Pozemky'!H17-('1.Pozemky'!I17+(I17*G17)))-J17) -> 0
F18: 0 | G18: 0.21 | H18: 0 | I18: 0 | J18: 0 | K18: =IF(data!$G$2=TRUE,('1.Pozemky'!F18-'1.Pozemky'!I18),('1.Pozemky'!H18-('1.Pozemky'!I18+(I18*G18)))-J18) -> 0
F19: 0 | G19: 0.21 | H19: 0 | I19: 0 | J19: 0 | K19: =IF(data!$G$2=TRUE,('1.Pozemky'!F19-'1.Pozemky'!I19),('1.Pozemky'!H19-('1.Pozemky'!I19+(I19*G19)))-J19) -> 0
F20: 0 | G20: 0.21 | H20: 0 | I20: 0 | J20: 0 | K20: =IF(data!$G$2=TRUE,('1.Pozemky'!F20-'1.Pozemky'!I20),('1.Pozemky'!H20-('1.Pozemky'!I20+(I20*G20)))-J20) -> 0
F21: 0 | G21: 0.21 | H21: 0 | I21: 0 | J21: 0 | K21: =IF(data!$G$2=TRUE,('1.Pozemky'!F21-'1.Pozemky'!I21),('1.Pozemky'!H21-('1.Pozemky'!I21+(I21*G21)))-J21) -> 0
F22: 0 | G22: 0.21 | H22: 0 | I22: 0 | J22: 0 | K22: =IF(data!$G$2=TRUE,('1.Pozemky'!F22-'1.Pozemky'!I22),('1.Pozemky'!H22-('1.Pozemky'!I22+(I22*G22)))-J22) -> 0
F23: 0 | G23: 0.21 | H23: 0 | I23: 0 | J23: 0 | K23: =IF(data!$G$2=TRUE,('1.Pozemky'!F23-'1.Pozemky'!I23),('1.Pozemky'!H23-('1.Pozemky'!I23+(I23*G23)))-J23) -> 0
F24: 0 | G24: 0.21 | H24: 0 | I24: 0 | J24: 0 | K24: =IF(data!$G$2=TRUE,('1.Pozemky'!F24-'1.Pozemky'!I24),('1.Pozemky'!H24-('1.Pozemky'!I24+(I24*G24)))-J24) -> 0
A25: 1.2 Pozemky jako neinvestiční výdaj | F25: =SUM(F26:F38) -> 0 | H25: =SUM(H26:H38) -> 0 | I25: =SUM(I26:I38) -> 0 | J25: =SUM(J26:J38) -> 0 | K25: =SUM(K26:K38) -> 0
F26: 0 | G26: 0.21 | H26: 0 | I26: 0 | J26: 0 | K26: =IF(data!$G$2=TRUE,('1.Pozemky'!F26-'1.Pozemky'!I26),('1.Pozemky'!H26-('1.Pozemky'!I26+(I26*G26)))-J26) -> 0
F27: 0 | G27: 0.21 | H27: 0 | I27: 0 | J27: 0 | K27: =IF(data!$G$2=TRUE,('1.Pozemky'!F27-'1.Pozemky'!I27),('1.Pozemky'!H27-('1.Pozemky'!I27+(I27*G27)))-J27) -> 0
F28: 0 | G28: 0.21 | H28: 0 | I28: 0 | J28: 0 | K28: =IF(data!$G$2=TRUE,('1.Pozemky'!F28-'1.Pozemky'!I28),('1.Pozemky'!H28-('1.Pozemky'!I28+(I28*G28)))-J28) -> 0
F29: 0 | G29: 0.21 | H29: 0 | I29: 0 | J29: 0 | K29: =IF(data!$G$2=TRUE,('1.Pozemky'!F29-'1.Pozemky'!I29),('1.Pozemky'!H29-('1.Pozemky'!I29+(I29*G29)))-J29) -> 0
F30: 0 | G30: 0.21 | H30: 0 | I30: 0 | J30: 0 | K30: =IF(data!$G$2=TRUE,('1.Pozemky'!F30-'1.Pozemky'!I30),('1.Pozemky'!H30-('1.Pozemky'!I30+(I30*G30)))-J30) -> 0
F31: 0 | G31: 0.21 | H31: 0 | I31: 0 | J31: 0 | K31: =IF(data!$G$2=TRUE,('1.Pozemky'!F31-'1.Pozemky'!I31),('1.Pozemky'!H31-('1.Pozemky'!I31+(I31*G31)))-J31) -> 0
F32: 0 | G32: 0.21 | H32: 0 | I32: 0 | J32: 0 | K32: =IF(data!$G$2=TRUE,('1.Pozemky'!F32-'1.Pozemky'!I32),('1.Pozemky'!H32-('1.Pozemky'!I32+(I32*G32)))-J32) -> 0
F33: 0 | G33: 0.21 | H33: 0 | I33: 0 | J33: 0 | K33: =IF(data!$G$2=TRUE,('1.Pozemky'!F33-'1.Pozemky'!I33),('1.Pozemky'!H33-('1.Pozemky'!I33+(I33*G33)))-J33) -> 0
F34: 0 | G34: 0.21 | H34: 0 | I34: 0 | J34: 0 | K34: =IF(data!$G$2=TRUE,('1.Pozemky'!F34-'1.Pozemky'!I34),('1.Pozemky'!H34-('1.Pozemky'!I34+(I34*G34)))-J34) -> 0
F35: 0 | G35: 0.21 | H35: 0 | I35: 0 | J35: 0 | K35: =IF(data!$G$2=TRUE,('1.Pozemky'!F35-'1.Pozemky'!I35),('1.Pozemky'!H35-('1.Pozemky'!I35+(I35*G35)))-J35) -> 0
F36: 0 | G36: 0.21 | H36: 0 | I36: 0 | J36: 0 | K36: =IF(data!$G$2=TRUE,('1.Pozemky'!F36-'1.Pozemky'!I36),('1.Pozemky'!H36-('1.Pozemky'!I36+(I36*G36)))-J36) -> 0
F37: 0 | G37: 0.21 | H37: 0 | I37: 0 | J37: 0 | K37: =IF(data!$G$2=TRUE,('1.Pozemky'!F37-'1.Pozemky'!I37),('1.Pozemky'!H37-('1.Pozemky'!I37+(I37*G37)))-J37) -> 0
F38: 0 | G38: 0.21 | H38: 0 | I38: 0 | J38: 0 | K38: =IF(data!$G$2=TRUE,('1.Pozemky'!F38-'1.Pozemky'!I38),('1.Pozemky'!H38-('1.Pozemky'!I38+(I38*G38)))-J38) -> 0
A39: Celkem | F39: =SUM(F25,F11) -> 2000000 | H39: =SUM(H25,H11) -> 2420000 | I39: =SUM(I25,I11) -> 0 | J39: =SUM(J25,J11) -> 0 | K39: =SUM(K25,K11) -> 2420000
H41: Komentář k nezpůsobilým výdajům:

Sheet 7.Osobní náklady
A1: instrukce | B1: Editujte pouze zelená pole. Tabulku vyplňujte v souladu s přílohou 2. Mzdy a platy Pravidel pro žadatele. Můžete přidávat řádky. Po přídání řádků zkontrolujte funkčnost výpočtů. Příklad kurzívou.
B4: Realizační tým
B5: Název pozice | C5: Mzdová sazba odpovídající úvazku ve výši 1,0 FTE/ hodinová sazba u DPP/DPČ | D5: Průměrný úvazek (FTE) za kalendářní měsíc projektu / počet hodin za období realizace projektu v případě DPP/DPČ | E5: Výše osobních nákladů za jeden kalendářní měsíc (hrubá mzda / plat) / Výše osobních nákladů za sledované období v případě DPP/DPČ | F5: Výše osobních nákladů včetně odvodů na straně zaměstnavatele | G5: Počet měsíců za vykazované období | H5: Celkem | I5: Způsob stanovení nákladů na zaměstnance | J5: Kód ISPV | K5: Mzda/plat/odměna | L5: Charakteristika pracovího místa / náplň práce | M5: Způsob doložení stanovení kódu | N5: Období zapojení osoby do projektu | P5: Poznámka k výpočtu | Q5: Zapojený subjekt (příjemce/ konkrétní partner) | R5: Popis vazby na aktivitu(y) projektu (sle SP)
N6: Od (max 1.1.2021) | O6: Do (max 31.12.2027)
A7: Hlavní administrativní tým - jednorázová částka | B7: Hlavní projektový manažer | D7: 1 | F7: =data!F11 -> 142437.5377 | H7: =F7*$G$11*D7 -> 1709250.452
B8: Projektový manažer | D8: 0.5 | F8: =data!F12 -> 76454.53994 | H8: =F8*$G$11*D8 -> 458727.2396
B9: Finanční manažer | D9: 0.5 | F9: =data!F13 -> 70468.28859 | H9: =F9*$G$11*D9 -> 422809.7315
B10: Administrativní pracovník | D10: 0.3 | F10: =data!F17 -> 45128.68053 | H10: 162463.2499
B11: 2.7.1 Celkem | G11: 12 | H11: =SUM(H7:H10) -> 2753250.674
A12: Odborný tým | B12: Pracovní smlovy | E12: =SUM(E13:E34) -> 280000 | F12: =SUM(F13:F34) -> 374640 | H12: =SUM(H13:H34) -> 2568960
B13: lektor A | C13: 100000 | D13: 0.8 | E13: =C13*D13 -> 80000 | F13: =E13*1.338 -> 107040 | G13: 4 | H13: =F13*G13 -> 428160 | I13: Jednotkový náklad | J13: 1111 | K13: mzda | M13: Dle charakteristiky PM odpovídá nejlépe tento kód | N13: 2021-01-01 | O13: 2021-12-31 | Q13: Partner A | R13: Aktivita 1
B14: exceletní vědec B | C14: 100000 | D14: 1 | E14: 100000 | F14: =E14*1.338 -> 133800 | G14: 4 | H14: =F14*G14 -> 535200
B15: lektor C | C15: 100000 | D15: 1 | E15: 100000 | F15: 133800 | G15: 12 | H15: =F15*G15 -> 1605600
C16: 0 | E16: 0 | F16: 0 | H16: 0
C17: 0 | E17: 0 | F17: 0 | H17: 0
C18: 0 | E18: 0 | F18: 0 | H18: 0
C19: 0 | E19: 0 | F19: 0 | H19: 0
C20: 0 | E20: 0 | F20: 0 | H20: 0
C21: 0 | E21: 0 | F21: 0 | H21: 0
C22: 0 | E22: 0 | F22: 0 | H22: 0
C23: 0 | E23: 0 | F23: 0 | H23: 0
C24: 0 | E24: 0 | F24: 0 | H24: 0
C25: 0 | E25: 0 | F25: 0 | H25: 0
C26: 0 | E26: 0 | F26: 0 | H26: 0
C27: 0 | E27: 0 | F27: 0 | H27: 0
C28: 0 | E28: 0 | F28: 0 | H28: 0
C29: 0 | E29: 0 | F29: 0 | H29: 0
C30: 0 | E30: 0 | F30: 0 | H30: 0
C31: 0 | E31: 0 | F31: 0 | H31: 0
C32: 0 | E32: 0 | F32: 0 | H32: 0
C33: 0 | E33: 0 | F33: 0 | H33: 0
C34: 0 | E34: 0 | F34: 0 | H34: 0
B35: Dohody o pracovní činnosti | E35: =SUM(E36:E47) -> 30000 | F35: =SUM(F47:F375) -> 40140 | H35: =SUM(H36:H47) -> 40140
B36: Osoba 1 | C36: 500 | D36: 60 | E36: =C36*D36 -> 30000 | F36: =E36*1.338 -> 40140 | H36: =F36 -> 40140 | I36: Hodinová sazba - výpočet | J36: 1111 | K36: odměna
C37: 0 | E37: 0 | F37: 0 | H37: =F37 -> 0
C38: 0 | E38: 0 | F38: 0 | H38: 0
C39: 0 | E39: 0 | F39: 0 | H39: 0
C40: 0 | E40: 0 | F40: 0 | H40: 0
C41: 0 | E41: 0 | F41: 0 | H41: 0
C42: 0 | E42: 0 | F42: 0 | H42: 0
C43: 0 | E43: 0 | F43: 0 | H43: =F43 -> 0
C44: 0 | E44: 0 | F44: 0 | H44: 0
C45: 0 | E45: 0 | F45: 0 | H45: 0
C46: 0 | E46: 0 | F46: 0 | H46: 0
C47: 0 | E47: 0 | F47: 0 | H47: 0
B48: Dohody o provedení práce (do výše 10 tis.Kč/měs) | E48: =SUM(E49:E53) -> 10000 | F48: =SUM(F49:F53) -> 0 | H48: =SUM(H49:H53) -> 10000
B49: Osoba 1 | C49: 500 | D49: 20 | E49: =C49*D49 -> 10000 | F49: 0 | H49: =E49 -> 10000 | I49: Hodinová sazba - výpočet
C50: 0 | E50: 0 | F50: 0 | H50: =E50 -> 0
C51: 0 | E51: 0 | F51: 0 | H51: =E51 -> 0
C52: 0 | E52: 0 | F52: 0 | H52: =E52 -> 0
C53: 0 | E53: 0 | F53: 0 | H53: =E53 -> 0
B54: Dohody o provedení práce (nad 10 tis.Kč/měs) | E54: =SUM(E55:E57) -> 15000 | F54: =SUM(F55:F57) -> 20070 | H54: =SUM(H55:H57) -> 20070
B55: Osoba 1 | C55: 1500 | D55: 10 | E55: 15000 | F55: =_xlfn.IFS(E55>=10001,E55*1.338,E55<=10000,E55) -> 20070 | H55: =F55 -> 20070
C56: 0 | E56: 0 | F56: =_xlfn.IFS(E56>=10001,E56*1.338,E56<=10000,E56) -> 0 | H56: 0
C57: 0 | E57: 0 | F57: =_xlfn.IFS(E57>=10001,E57*1.338,E57<=10000,E57) -> 0 | H57: 0
B58: 2.7.2. Celkem | H58: =SUM(H48,H35,H12,H54) -> 2639170
A60: Celkem | H60: =H11+H58 -> 5392420.674

Sheet Paušál
A1: Paušál
A2: Název položky | B2: Částka | D2: Instrukce | E2: Editujte pouze zelená pole. Zpracování projektové dokumentace je v této výzvě přímým nákladem. Zpracování příloh žádosti a administrace VZ před podáním žádosti je v této výzvě přímým nákladem. Projekty podléhající režimu veřejné podpory, která vyžaduje splnění motivačního účinku (GBER, notifikovaná podpora), nemohou z důvodu specifických podmínek způsobilosti výdajů využít financování některých nepřímých nákladů paušální sazbou (provoz, výdaje předcházející podání žádosti...). Pro tyto případy bude žadatel specifikovat naplnění paušální částky v příloze Rozpočet. Paušální částka musí být zcela naplněna pouze způsobilými položkami. Pokud žadatel nebude schopen naplnit výši paušálu způsobilými položkami, budou mu výdaje hrazeny v režimu reálného vykazování. Těmto projektům budou i nadále propláceny způsobilé nepřímé výdaje v rámci ŽoP na základě skutečně vynaložených výdajů. Doložené nepřímé výdaje budou považovány za způsobilé maximálně do výše 7 % limitu paušální sazby pro jednotlivé kategorie CZPRV.
A3: a) Správce stavby, technický autorský dozor,… | B3: 0
A4: b) Osobní náklady | B4: 0
A5: c) Spotřební materiál, zařízení a vybavení | B5: 0
A6: d) Cestovní náhrady | B6: 0
A7: e) Spotřební materiál, zařízení a vybavení | B7: 0
A8: f) Prostory pro realizaci projektu | B8: 0
A9: g) Ostatní provozní výdaje | B9: 0
A10: h) Výdaje související s povinnou publicitou a propagací | B10: 0
A11: i) Režijní náklady | B11: 0
A12: j) Výdaje na vzdělávání administrativního a odborného týmu | B12: 0
A13: Celkem | B13: =SUM(B3:B12) -> 0
A14: Paušál kontrolní odečet | B14: =Rozpočet_stratpro!G103-B13 -> 0
A18: Žadatel ztvrzuje, že náklady zahrnuté do paušální částky splňují podmínky pro daný režim Veřejné podpory.

Sheet data (hidden)
A1: Priorita | B1: Specifický cíl | C1: pozice | D1: Admin_mzda/1FTE/1měsíc | E1: Typ pracovně právního vztahu | F1: Způsob stanovení nákladů na zaměstnance | G1: DPH | H1: Forma odměny | I1: Paušál
A2: 1. Karlovarský kraj | B2: 1.1 | C2: Hlavní projektový manažer | D2: 142438 | E2: Pracovní smlouva | G2: FALSE | H2: mzda | I2: 0.03
A3: 2. Ústecký kraj | B3: 2.1 | C3: Projektový manažer | D3: 76455 | E3: DPČ | F3: Hodinová sazba - výpočet | H3: plat | I3: 0.05
A4: 3. Moravskoslezský kraj | B4: 3.1 | C4: Finanční manažer | D4: 70468 | E4: DPP | F4: Jednotkový náklad ISPV | H4: odměna | I4: 0.07
C5: Administrativní pracovník | D5: 45129
A8: Vážený průměr
A9: počet projektů plat | B9: 13 | C9: Plat v Kč | D9: Mzda v Kč | E9: Sazba hrubé mzdy dle ISPV (za plný úvazek) v Kč | F9: Výše osobních nákladů, tj. hrubá mzda + odvody za zaměstnavatele (za plný úvazek) v Kč
A10: počet projektů mzdy | B10: 21
A11: Hlavní projektový manažer/ vedoucí projektu | B11: 2422 | C11: 70687 | D11: 128598 | E11: =((C11*$B$9)+(D11*$B$10))/34 -> 106455.5588 | F11: =E11*1.338 -> 142437.5377
A12: Projektový manažer/ týmový manažer | B12: 2422 | C12: 47673 | D12: 63002 | E12: =((C12*$B$9)+(D12*$B$10))/34 -> 57140.91176 | F12: =E12*1.338 -> 76454.53994
A13: Finanční manažer | B13: 2411 | C13: 42052 | D13: 59238 | E13: =((C13*$B$9)+(D13*$B$10))/34 -> 52666.88235 | F13: =E13*1.338 -> 70468.28859
A14: Administrativní pracovník | B14: 4110 | C14: 33435 | D14: 27325 | E14: =((C14*$B$9)+(D14*$B$10))/34 -> 29661.17647
B15: 3343 | C15: 36488 | D15: 39354 | E15: 38258.17647
B16: 4120 | C16: 33489 | D16: 33128 | E16: 33266.02941
D17: průměr za (4110, 3343, 4120) | E17: =AVERAGE(E14:E16) -> 33728.46078 | F17: 45128.68053

Sheet List2 (hidden)
A1: Volba | B1: nezvoleno | C1: PO 2
A2: nezvoleno | B2: nezvoleno | C2: 2.2 a) Lokální spalovací stacionární zdroje
C3: 2.2 a) Ostatní spalovací stacionární zdroje
A4: PO_2 | C4: 2.2 b) Ostatní stacionární zdroje
C5: 2.2 c) Stacionární zdroje těkavých organických látek
C6: 2.2 d) Dodatečné technologie a změny technolog. postupů u spalovacích zdrojů
C7: 2.2 e) Dodatečné technologie a změny technolog. postupů u stacionárních zdrojů
C8: 2.2 f) Dodatečné technologie a změny technolog. postupů u stacionárních zdrojů těkavých organických látek
C9: 2.2 g) Technologie ke snižování emisí NH3
C10: 2.2 h) Omezování prašnosti z plošných zdrojů
C11: 2.2 i) Soustavy centralizovaného zásobování tepelnou energií
C12: 2.3 Projekty zaměřené na monitoring
A22: Volba | B22: TRUE | C22: FALSE
A23: TRUE | B23: Kotel na pevná paliva | C23: není
A24: FALSE | B24: Kondenzační kotel na zemní plyn
B25: Elektrické tepelné čerpadlo vzduch/voda
B26: Elektrické tepelné čerpadlo země/voda
B27: Elektrické tepelné čerpadlo voda/voda
B28: Plynové tepelné čerpadlo vzduch/voda
B29: Plynové tepelné čerpadlo země/voda
B30: Plynové tepelné čerpadlo voda/voda
B31: Plochý kolektor
B32: Trubicový vakuový kolektor
D35: 9400
D36: 8300
A37: 2 | D37: 30000
A38: 8300 | D38: 45900
A39: FALSE | D39: 45900
A40: TRUE | D40: 20600
A41: FALSE | D41: 34300
D42: 34300 | E42: 2
D43: 26500 | E43: =E42 -> 2
D44: 48400 | E44: 2000
D45: 170000
H47: KDYŽ(B2="ano";C6*0,22;KDYŽ(B2="ne";C6*0,05;"chyba"))
A48: Kotel na biomasu/tuhá paliva/plyn
A49: Plynové / Elektrické TČ
